[Event "FIDE Women GP Monaco 2019"]
[Site "Monaco"]
[Date "2019.12.13"]
[Round "10.4"]
[White "Cramling, Pia"]
[Black "Koneru, Humpy"]
[Result "1/2-1/2"]
[ECO "E11"]
[WhiteElo "2461"]
[BlackElo "2574"]
[Annotator "ChessBase"]
[PlyCount "97"]
[EventDate "2019.12.03"]
[EventType "tourn"]
[EventCountry "MNC"]
[SourceTitle "playchess.com"]
[Source "ChessBase"]
[SourceQuality "1"]
[TimeControl "40/5400+30:1800+30"]

1. d4 {[%emt 0:00:00]} Nf6 {[%emt 0:00:00]} 2. Nf3 {[%emt 0:00:17]} e6 {[%emt 0:00:04]} 3. c4 {[%emt 0:00:14]} Bb4+ {[%emt 0:00:32]} 4. Nbd2 {[%emt 0:00:19]} O-O {[%emt 0:00:25]} 5. a3 {[%emt 0:00:19]} Be7 {[%emt 0:00:25]} 6. e4 {[%emt 0:00:24]} d6 {[%emt 0:00:21]} 7. Be2 {[%emt 0:00:53]} Nfd7 {[%emt 0:02:29]} 8. b4 {[%emt 0:04:38]} e5 {[%emt 0:04:20]} 9. d5 {[%emt 0:01:52]} c6 {[%emt 0:06:45]} 10. O-O {[%emt 0:09:19]} cxd5 {[%emt 0:07:11]} 11. cxd5 {[%emt 0:00:19]} Nb6 {[%emt 0:00:51]} 12. Nb3 {[%emt 0:16:06]} f5 {[%emt 0:02:37]} 13. Na5 {[%emt 0:08:53]} fxe4 {[%emt 0:16:01]} 14. Nd2 {[%emt 0:02:29]} Bf5 {[%emt 0:11:29]} 15. Nxb7 {[%emt 0:02:58]} Qc8 {[%emt 0:05:04]} 16. Na5 {[%emt 0:00:13]} Nxd5 {[%emt 0:02:37]} 17. Bc4 {[%emt 0:03:05]} Be6 {[%emt 0:00:16]} 18. Qb3 {[%emt 0:07:15]} Nc7 {[%emt 0:01:02]} 19. Bxe6+ {[%emt 0:01:16]} Qxe6 {[%emt 0:00:11]} 20. Qxe6+ {[%emt 0:01:46]} Nxe6 {[%emt 0:00:02]} 21. Nxe4 {[%emt 0:00:18]} d5 {[%emt 0:07:07]} 22. Nc3 {[%emt 0:00:51]} d4 {[%emt 0:02:44]} 23. Ne4 {[%emt 0:01:11]} Rc8 {[%emt 0:01:11]} 24. Bd2 {[%emt 0:01:15]} Nc6 {[%emt 0:02:00]} 25. Nxc6 {[%emt 0:02:22]} Rxc6 {[%emt 0:00:06]} 26. Rfc1 {[%emt 0:00:08]} Rac8 {[%emt 0:01:39]} 27. Rxc6 {[%emt 0:02:43]} Rxc6 {[%emt 0:00:27]} 28. Rc1 {[%emt 0:00:06]} Ra6 {[%emt 0:02:08]} 29. Ra1 {[%emt 0:05:09]} Ra4 {[%emt 0:04:36]} 30. f3 {[%emt 0:00:16]} Kf7 {[%emt 0:02:59]} 31. Nf2 {[%emt 0:07:39]} Nc7 {[%emt 0:07:57]} 32. Nd3 {[%emt 0:00:12]} Ke6 {[%emt 0:04:16]} 33. Kf1 {[%emt 0:08:46]} Bd6 {[%emt 0:03:07]} 34. Nb2 {[%emt 0:00:51]} Ra6 {[%emt 0:00:01]} 35. Ke2 {[%emt 0:02:43]} Nd5 {[%emt 0:01:32]} 36. Nd3 {[%emt 0:02:03]} Nf6 {[%emt 0:00:27]} 37. a4 {[%emt 0:01:14]} Rc6 {[%emt 0:01:37]} 38. b5 {[%emt 0:02:54]} Rc2 {[%emt 0:00:02]} 39. Ne1 {[%emt 0:00:52]} Rc4 {[%emt 0:01:52]} 40. a5 {[%emt 0:03:49]} e4 {[%emt 0:00:03]} 41. fxe4 {[%emt 0:30:41]} Nxe4 {[%emt 0:30:19]} 42. Nf3 {[%emt 0:00:00]} Kd5 {[%emt 0:00:00]} 43. b6 {[%emt 0:00:00]} axb6 {[%emt 0:00:00]} 44. axb6 {[%emt 0:00:00]} Nxd2 {[%emt 0:00:00]} 45. Nxd2 {[%emt 0:00:00]} Rb4 {[%emt 0:00:00]} 46. Ra5+ {[%emt 0:00:00]} Kc6 {[%emt 0:00:00]} 47. Kd3 {[%emt 0:00:00]} Rxb6 {[%emt 0:00:00]} 48. Rh5 {[%emt 0:00:00]} Rb2 {[%emt 0:00:00]} 49. Ke4 1/2-1/2

[Event "FIDE Women GP Monaco 2019"]
[Site "Monaco"]
[Date "2019.12.13"]
[Round "10.5"]
[White "Goryachkina, Aleksandra"]
[Black "Muzychuk, Anna"]
[Result "1/2-1/2"]
[ECO "D85"]
[WhiteElo "2572"]
[BlackElo "2537"]
[Annotator "ChessBase"]
[PlyCount "68"]
[EventDate "2019.12.03"]
[EventType "tourn"]
[EventCountry "MNC"]
[SourceTitle "playchess.com"]
[Source "ChessBase"]
[SourceQuality "1"]
[TimeControl "40/5400+30:1800+30"]

1. d4 {[%emt 0:00:00]} Nf6 {[%emt 0:00:00]} 2. c4 {[%emt 0:00:00]} g6 {[%emt 0:00:00]} 3. Nc3 {[%emt 0:00:14]} d5 {[%emt 0:00:00]} 4. Nf3 {[%emt 0:00:21]} Bg7 {[%emt 0:00:06]} 5. cxd5 {[%emt 0:00:17]} Nxd5 {[%emt 0:00:10]} 6. e4 {[%emt 0:00:13]} Nxc3 {[%emt 0:00:27]} 7. bxc3 {[%emt 0:00:09]} c5 {[%emt 0:00:30]} 8. h3 {[%emt 0:00:43]} O-O {[%emt 0:00:38]} 9. Be3 {[%emt 0:00:48]} e6 {[%emt 0:01:28]} 10. Be2 {[%emt 0:05:34]} b6 {[%emt 0:00:50]} 11. h4 {[%emt 0:05:35]} Bb7 {[%emt 0:12:34]} 12. e5 {[%emt 0:01:00]} cxd4 {[%emt 0:11:59]} 13. cxd4 {[%emt 0:00:35]} Nc6 {[%emt 0:00:30]} 14. h5 {[%emt 0:02:21]} Qd5 {[%emt 0:01:29]} 15. hxg6 {[%emt 0:08:20]} hxg6 {[%emt 0:01:35]} 16. Rc1 {[%emt 0:04:51]} Rad8 {[%emt 0:09:09]} 17. Bc4 {[%emt 0:13:07]} Qa5+ {[%emt 0:01:59]} 18. Kf1 {[%emt 0:01:02]} Nxe5 {[%emt 0:21:58]} 19. Nxe5 {[%emt 0:07:07]} Bxe5 20. Bd2 Rxd4 {[%emt 0:01:53]} 21. Bxa5 {[%emt 0:00:55]} Rxd1+ {[%emt 0:00:05]} 22. Rxd1 {[%emt 0:00:04]} bxa5 {[%emt 0:00:16]} 23. Rh3 {[%emt 0:04:18]} Rc8 {[%emt 0:01:59]} 24. Bb3 {[%emt 0:01:22]} Bc6 {[%emt 0:07:27]} 25. Re3 {[%emt 0:04:24]} Bb5+ {[%emt 0:00:19]} 26. Kg1 {[%emt 0:00:11]} Rc5 {[%emt 0:00:27]} 27. a4 {[%emt 0:07:12]} Bc6 {[%emt 0:01:47]} 28. Re2 {[%emt 0:03:14]} Kf8 {[%emt 0:02:50]} 29. Rc2 {[%emt 0:00:56]} Rxc2 {[%emt 0:00:14]} 30. Bxc2 {[%emt 0:00:01]} Ke7 {[%emt 0:00:57]} 31. Bb3 {[%emt 0:00:12]} Bc7 {[%emt 0:03:10]} 32. Rc1 {[%emt 0:01:22]} Kd7 {[%emt 0:00:38]} 33. Rxc6 {[%emt 0:00:48]} Kxc6 {[%emt 0:00:06]} 34. Bc4 {[%emt 0:00:30]} Kc5 {[%emt 0:03:15]} 1/2-1/2

[Event "FIDE Women GP Monaco 2019"]
[Site "Monaco"]
[Date "2019.12.13"]
[Round "10.6"]
[White "Gunina, Valentina"]
[Black "Muzychuk, Mariya"]
[Result "1/2-1/2"]
[ECO "D43"]
[WhiteElo "2492"]
[BlackElo "2559"]
[Annotator "ChessBase"]
[PlyCount "97"]
[EventDate "2019.12.03"]
[EventType "tourn"]
[EventCountry "MNC"]
[SourceTitle "playchess.com"]
[Source "ChessBase"]
[SourceQuality "1"]
[TimeControl "40/5400+30:1800+30"]

1. d4 {[%emt 0:00:00]} Nf6 {[%emt 0:00:00]} 2. c4 {[%emt 0:00:00]} e6 {[%emt 0:00:03]} 3. Nf3 {[%emt 0:00:00]} d5 {[%emt 0:00:29]} 4. Nc3 {[%emt 0:00:14]} c6 {[%emt 0:00:22]} 5. Bg5 {[%emt 0:00:27]} h6 {[%emt 0:00:18]} 6. Bxf6 {[%emt 0:00:10]} Qxf6 {[%emt 0:00:04]} 7. e3 {[%emt 0:00:04]} g6 {[%emt 0:02:03]} 8. Ne5 {[%emt 0:01:12]} Bg7 {[%emt 0:01:05]} 9. f4 {[%emt 0:01:22]} O-O {[%emt 0:03:21]} 10. cxd5 {[%emt 0:05:53]} exd5 {[%emt 0:02:07]} 11. Bd3 {[%emt 0:00:06]} c5 {[%emt 0:24:05]} 12. O-O {[%emt 0:09:15]} Nc6 {[%emt 0:08:05]} 13. Nxd5 {[%emt 0:01:46]} Qd6 {[%emt 0:02:29]} 14. e4 {[%emt 0:08:19]} Nxd4 {[%emt 0:04:37]} 15. Nc4 {[%emt 0:00:15]} Qd8 {[%emt 0:00:49]} 16. Nce3 {[%emt 0:15:13]} Be6 {[%emt 0:08:22]} 17. Rc1 {[%emt 0:03:58]} Rc8 {[%emt 0:00:31]} 18. Qa4 {[%emt 0:01:14]} f5 {[%emt 0:10:08]} 19. Kh1 {[%emt 0:02:24]} a5 {[%emt 0:02:19]} 20. Qa3 {[%emt 0:06:34]} b6 {[%emt 0:00:30]} 21. exf5 {[%emt 0:07:34]} gxf5 {[%emt 0:01:25]} 22. Nc3 {[%emt 0:00:12]} Kh8 {[%emt 0:00:40]} 23. Qa4 {[%emt 0:04:22]} Qe7 {[%emt 0:04:19]} 24. Qd1 {[%emt 0:07:33]} Qf7 {[%emt 0:00:30]} 25. b3 {[%emt 0:05:57]} Rcd8 {[%emt 0:03:16]} 26. Rf2 {[%emt 0:00:32]} Rfe8 {[%emt 0:04:20]} 27. Nf1 {[%emt 0:03:56]} a4 {[%emt 0:04:35]} 28. Nxa4 Nxb3 {[%emt 0:00:08]} 29. axb3 {[%emt 0:08:43]} Bxb3 {[%emt 0:00:03]} 30. Qf3 {[%emt 0:00:02]} Bxa4 {[%emt 0:00:11]} 31. Ng3 {[%emt 0:00:06]} Bd7 {[%emt 0:00:26]} 32. Qb7 {[%emt 0:01:43]} Bd4 {[%emt 0:02:18]} 33. Re2 {[%emt 0:00:25]} Be3 {[%emt 0:04:46]} 34. Rce1 {[%emt 0:03:07]} Bxf4 {[%emt 0:00:39]} 35. Qxb6 {[%emt 0:01:42]} Bxg3 {[%emt 0:06:25]} 36. Qxh6+ {[%emt 0:00:45]} Qh7 {[%emt 0:00:15]} 37. Rxe8+ {[%emt 0:01:05]} Rxe8 {[%emt 0:00:05]} 38. Rxe8+ {[%emt 0:00:05]} Bxe8 {[%emt 0:00:04]} 39. Qf8+ {[%emt 0:01:39]} Qg8 {[%emt 0:00:04]} 40. Qh6+ {[%emt 0:00:50]} Qh7 {[%emt 0:00:04]} 41. Qf8+ {[%emt 0:08:28]} Qg8 {[%emt 0:00:06]} 42. Qxc5 {[%emt 0:03:50]} Bb8 {[%emt 0:08:08]} 43. Qd4+ {[%emt 0:03:34]} Qg7 {[%emt 0:01:13]} 44. Qh4+ {[%emt 0:06:05]} Kg8 {[%emt 0:01:23]} 45. Qc4+ {[%emt 0:00:32]} Qf7 {[%emt 0:04:06]} 46. Qxf7+ {[%emt 0:06:50]} Kxf7 {[%emt 0:00:06]} 47. Bxf5 {[%emt 0:00:05]} Bc6 {[%emt 0:00:03]} 48. Bg4 {[%emt 0:00:08]} Kf6 {[%emt 0:00:05]} 49. Bf3 {[%emt 0:00:05]} 1/2-1/2